fUSD/lending_fUSD_20240624
["ID","MTS","AMOUNT","RATE_DAILY","PERIOD"]
[330290522,1719234659603,-500.0,0.00020273,4]
[330290523,1719234659615,-500.0,0.00020273,4]
[330290524,1719234659625,-500.0,0.00020273,4]
[330290525,1719234659635,-500.0,0.00020273,4]
[330290526,1719234659645,-578.19,0.00020273,4]
[330290527,1719234659654,-500.0,0.00020273,4]
[330290528,1719234659664,-634.5,0.00020273,4]
[330290529,1719234659673,-500.0,0.00020273,4]
[330290530,1719234659682,-500.0,0.00020273,4]
[330290531,1719234659692,-500.0,0.00020273,4]
[330290532,1719234659701,-500.0,0.00020273,4]
[330290533,1719234659710,-500.0,0.00020273,4]
[330290534,1719234659720,-500.0,0.00020273,4]
[330290535,1719234659729,-500.0,0.00020273,4]
[330290536,1719234659738,-500.0,0.00020273,4]
[330290537,1719234659748,-955.98,0.00020273,4]
[330290538,1719234659758,-500.0,0.00020273,4]
[330290539,1719234659767,-500.0,0.00020273,4]
[330290540,1719234659777,-500.0,0.00020273,4]
[330290541,1719234659786,-500.0,0.00020273,4]
[330290542,1719234659795,-500.0,0.00020273,4]
[330290543,1719234659804,-500.0,0.00020273,4]
[330290544,1719234659818,-500.0,0.00020273,4]
[330290545,1719234659827,-500.0,0.00020273,4]
[330290546,1719234659837,-500.0,0.00020273,4]
[330290547,1719234659846,-500.0,0.00020273,4]
[330290548,1719234659856,-500.0,0.00020273,4]
[330290549,1719234659866,-500.0,0.00020273,4]
[330290550,1719234659875,-500.0,0.00020273,4]
[330290551,1719234659886,-500.0,0.00020273,4]
[330290552,1719234659896,-500.0,0.00020273,4]
[330290553,1719234659905,-500.0,0.00020273,4]
[330290554,1719234659914,-533.5674791,0.00020273,4]
[330290555,1719234659924,-500.0,0.00020273,4]
[330290556,1719234659934,-500.0,0.00020273,4]
[330290557,1719234659943,-500.0,0.00020273,4]
[330290558,1719234659952,-500.0,0.00020273,4]
[330290559,1719234659961,-500.0,0.00020273,4]
[330290560,1719234659971,-500.0,0.00020273,4]
[330290561,1719234659981,-500.0,0.00020273,4]
[330290562,1719234659991,-500.0,0.00020273,4]
[330290563,1719234660002,-721.78,0.00020273,4]
[330290564,1719234660012,-500.0,0.00020273,4]
[330290565,1719234660022,-500.0,0.00020273,4]
[330290566,1719234660032,-500.0,0.00020273,4]
[330290567,1719234660043,-500.0,0.00020273,4]
[330290568,1719234660053,-500.0,0.00020273,4]
[330290569,1719234660062,-500.0,0.00020273,4]
[330290570,1719234660072,-500.0,0.00020273,4]
[330290571,1719234660082,-500.0,0.00020273,4]
[330290572,1719234660091,-500.0,0.00020273,4]
[330290573,1719234660100,-500.0,0.00020273,4]
[330290574,1719234660110,-500.0,0.00020273,4]
[330290575,1719234660122,-500.0,0.00020273,4]
[330290576,1719234660133,-500.0,0.00020273,4]
[330290577,1719234660143,-500.0,0.00020273,4]
[330290578,1719234660153,-500.0,0.00020273,4]
[330290579,1719234660162,-500.0,0.00020273,4]
[330290580,1719234660172,-500.0,0.00020273,4]
[330290581,1719234660182,-500.0,0.00020273,4]
[330290582,1719234660191,-961.17,0.00020273,4]
[330290583,1719234660201,-559.62,0.00020273,4]
[330290584,1719234660210,-500.0,0.00020273,4]
[330290585,1719234660219,-500.0,0.00020273,4]
[330290586,1719234660229,-500.0,0.00020273,4]
[330290587,1719234660238,-500.0,0.00020273,4]
[330290588,1719234660247,-500.0,0.00020273,4]
[330290589,1719234660256,-500.0,0.00020273,4]
[330290590,1719234660266,-500.0,0.00020273,4]
[330290591,1719234660275,-500.0,0.00020273,4]
[330290592,1719234660285,-503.91,0.00020273,4]
[330290593,1719234660294,-500.0,0.00020273,4]
[330290594,1719234660303,-500.0,0.00020273,4]
[330290595,1719234660312,-641.94,0.00020273,4]
[330290596,1719234660322,-500.0,0.00020273,4]
[330290597,1719234660331,-500.0,0.00020273,4]
[330290598,1719234660340,-946.9,0.00020273,4]
[330290599,1719234660349,-2789.32,0.00020273,4]
[330290600,1719234660359,-393.76,0.00020273,4]
[330290601,1719234660368,-500.0,0.00020273,4]
[330290602,1719234660379,-1021.32,0.00020273,4]
[330290603,1719234660391,-500.0,0.00020273,4]
[330290604,1719234660400,-569.55,0.00020273,4]
[330290605,1719234660409,-500.0,0.00020273,4]
[330290606,1719234660419,-231.673429,0.00020273,2]
[330290607,1719234660429,-500.0,0.00020273,4]
[330290608,1719234660439,-609.74,0.00020273,4]
[330290609,1719234660449,-231.673429,0.00020273,2]
[330290610,1719234660459,-2129.68,0.00020273,4]
[330290611,1719234660469,-523.1,0.00020273,4]
[330290612,1719234660479,-500.0,0.00020273,4]
[330290613,1719234660489,-604.89,0.00020273,4]
[330290614,1719234660499,-500.0,0.00020273,4]
[330290615,1719234660509,-500.0,0.00020273,4]
[330290616,1719234660518,-518.22,0.00020273,4]
[330290617,1719234660533,-539.45,0.00020273,4]
[330290618,1719234660542,-5685.35,0.00020273,4]
[330290619,1719234660552,-500.0,0.00020273,4]
[330290620,1719234660562,-8388.92,0.00020273,4]
[330290621,1719234660571,-788.23,0.00020273,4]
[330290622,1719234660583,-931.76,0.00020273,4]
[330290623,1719234660592,-528.15,0.00020273,4]
[330290624,1719234660601,-558.11,0.00020273,4]
[330290625,1719234660610,-589.44,0.00020273,4]
[330290626,1719234660618,-500.0,0.00020273,4]
[330290627,1719234660632,-500.0,0.00020273,4]
[330290628,1719234660642,-500.0,0.00020273,4]
[330290629,1719234660651,-552.26,0.00020273,4]
[330290630,1719234660660,-500.0,0.00020273,4]
[330290631,1719234660670,-598.81,0.00020273,4]
[330290632,1719234660679,-500.0,0.00020273,4]
[330290633,1719234660688,-500.0,0.00020273,4]
[330290634,1719234660697,-515.94,0.00020273,4]
[330290635,1719234660707,-500.0,0.00020273,4]
[330290636,1719234660716,-1333.15,0.00020273,4]
[330290637,1719234660725,-1076.06,0.00020273,4]
[330290638,1719234660737,-500.0,0.00020273,4]
[330290639,1719234660754,-507.36,0.00020273,4]
[330290640,1719234660769,-500.0,0.00020273,4]
[330290641,1719234660779,-1022.66,0.00020273,4]
[330290642,1719234660789,-500.0,0.00020273,4]
[330290643,1719234660798,-500.0,0.00020273,4]
[330290644,1719234660807,-500.0,0.00020273,4]
[330290645,1719234660817,-4095.82,0.00020273,4]
[330290646,1719234660826,-500.0,0.00020273,4]
[330290647,1719234660836,-670.27,0.00020273,4]
[330290648,1719234660845,-500.0,0.00020273,4]
[330290649,1719234660854,-587.18,0.00020273,4]
[330290650,1719234660863,-500.0,0.00020273,4]
[330290651,1719234660872,-500.0,0.00020273,4]
[330290652,1719234660884,-500.0,0.00020273,4]
[330290653,1719234660893,-500.0,0.00020273,4]
[330290654,1719234660902,-500.0,0.00020273,4]
[330290655,1719234660911,-599.34,0.00020273,4]
[330290656,1719234660921,-1195.25,0.00020273,4]
[330290657,1719234660930,-833.51,0.00020273,4]
[330290658,1719234660939,-500.0,0.00020273,4]
[330290659,1719234660955,-675.38,0.00020273,4]
[330290660,1719234660964,-1029.66,0.00020273,4]
[330290661,1719234660973,-389.053194,0.00020273,4]
[330290662,1719234660982,-500.0,0.00020273,4]
[330290663,1719234660992,-500.0,0.00020273,4]
[330290664,1719234661001,-599.32,0.00020273,4]
[330290665,1719234661010,-500.0,0.00020273,4]
[330290666,1719234661019,-751.48,0.00020273,4]
[330290667,1719234661029,-504.75,0.00020273,4]
[330290668,1719234661038,-622.88,0.00020273,4]
[330290669,1719234661048,-812.04,0.00020273,4]
[330290670,1719234661057,-500.0,0.00020273,4]
[330290671,1719234661066,-500.0,0.00020273,4]
[330290672,1719234661079,-1838.7,0.00020273,4]
[330290673,1719234661089,-500.0,0.00020273,4]
[330290674,1719234661151,-732.02,0.00020273,4]
[330290675,1719234661161,-500.0,0.00020273,4]
[330290676,1719234661170,-548.92,0.00020273,4]
[330290677,1719234661184,-500.0,0.00020273,4]
[330290678,1719234661193,-500.0,0.00020273,4]
[330290679,1719234661203,-1104.05,0.00020273,4]
[330290680,1719234661212,-500.0,0.00020273,4]
[330290681,1719234661222,-790.0,0.00020273,4]
[330290682,1719234661231,-500.0,0.00020273,4]
[330290683,1719234661240,-500.0,0.00020273,4]
[330290684,1719234661250,-500.0,0.00020273,4]
[330290685,1719234661259,-950.44,0.00020273,4]
[330290686,1719234661268,-775.48,0.00020273,4]
[330290687,1719234661278,-3276.0,0.00020273,4]
[330290688,1719234661288,-500.0,0.00020273,4]
[330290689,1719234661297,-713.29,0.00020273,4]
[330290690,1719234661307,-500.0,0.00020273,4]
[330290691,1719234661316,-500.0,0.00020273,4]
[330290692,1719234661325,-500.0,0.00020273,4]
[330290693,1719234661335,-803.86,0.00020273,4]
[330290694,1719234661344,-832.62,0.00020273,4]
[330290695,1719234661354,-500.0,0.00020273,4]
[330290696,1719234661363,-832.67,0.00020273,4]
[330290697,1719234661372,-997.41,0.00020273,4]
[330290698,1719234661382,-689.81,0.00020273,4]
[330290699,1719234661391,-500.0,0.00020273,4]
[330290700,1719234661400,-500.0,0.00020273,4]
[330290701,1719234661409,-500.0,0.00020273,4]
[330290702,1719234661418,-1136.57,0.00020273,4]
[330290703,1719234661427,-594.74,0.00020273,4]
[330290704,1719234661436,-500.0,0.00020273,4]
[330290705,1719234661445,-500.0,0.00020273,4]
[330290706,1719234661454,-500.0,0.00020273,4]
[330290707,1719234661463,-556.0,0.00020273,4]
[330290708,1719234661472,-2120.74,0.00020273,4]
[330290709,1719234661481,-500.0,0.00020273,4]
[330290710,1719234661490,-500.0,0.00020273,4]
[330290711,1719234661500,-1028.46,0.00020273,4]
[330290712,1719234661509,-500.0,0.00020273,4]
[330290713,1719234661518,-500.0,0.00020273,4]
[330290714,1719234661530,-747.27,0.00020273,4]
[330290715,1719234661539,-170.059563,0.00020273,2]
[330290716,1719234661548,-622.5,0.00020273,4]
[330290717,1719234661557,-500.0,0.00020273,4]
[330290718,1719234661566,-500.0,0.00020273,4]
[330290719,1719234661578,-1256.7,0.00020273,4]
[330290720,1719234661587,-170.059563,0.00020273,2]
[330290721,1719234661596,-500.0,0.00020273,4]
[330290722,1719234661606,-500.0,0.00020273,4]
[330290723,1719234661616,-1155.94,0.00020273,4]
[330290724,1719234661624,-1233.58,0.00020273,4]
[330290725,1719234661636,-500.0,0.00020273,4]
[330290726,1719234661644,-825.41,0.00020273,4]
[330290727,1719234661653,-1536.4,0.00020273,4]
[330290728,1719234661662,-500.0,0.00020273,4]
[330290729,1719234661673,-500.0,0.00020273,4]
[330290730,1719234661682,-616.11,0.00020273,4]
[330290731,1719234661691,-500.0,0.00020273,4]
[330290732,1719234661701,-766.48,0.00020273,4]
[330290733,1719234661710,-698.01,0.00020273,4]
[330290734,1719234661719,-1447.35,0.00020273,4]
[330290735,1719234661729,-1293.45,0.00020273,4]
[330290736,1719234661738,-1214.1,0.00020273,4]
[330290737,1719234661747,-500.0,0.00020273,4]
[330290738,1719234661757,-500.0,0.00020273,4]
[330290739,1719234661767,-500.0,0.00020273,4]
[330290740,1719234661776,-1161.02,0.00020273,4]
[330290741,1719234661786,-500.0,0.00020273,4]
[330290742,1719234661794,-500.0,0.00020273,4]
[330290743,1719234661803,-546.3,0.00020273,4]
[330290744,1719234661813,-500.0,0.00020273,4]
[330290745,1719234661822,-1083.99,0.00020273,4]
[330290746,1719234661831,-1624.6,0.00020273,4]
[330290747,1719234661841,-500.0,0.00020273,2]
[330290748,1719234661851,-500.0,0.00020273,4]
[330290749,1719234661860,-500.0,0.00020273,4]
[330290750,1719234661869,-746.16,0.00020273,4]
[330290751,1719234661879,-841.88,0.00020273,4]
[330290752,1719234661889,-1918.02,0.00020273,4]
[330290753,1719234661898,-1003.97,0.00020273,4]
[330290754,1719234661907,-500.0,0.00020273,4]
[330290755,1719234661917,-500.0,0.00020273,4]
[330290756,1719234661926,-500.0,0.00020273,4]
[330290757,1719234661936,-2470.72,0.00020273,4]
[330290758,1719234661945,-822.29,0.00020273,4]
[330290759,1719234661955,-1351.09,0.00020273,4]
[330290760,1719234661965,-1545.77,0.00020273,4]
[330290761,1719234661974,-1773.63,0.00020273,4]
[330290762,1719234661983,-1522.1,0.00020273,4]
[330290763,1719234661992,-1647.16,0.00020273,4]
[330290764,1719234662002,-500.0,0.00020273,4]
[330290765,1719234662011,-500.0,0.00020273,4]
[330290766,1719234662021,-536.58,0.00020273,4]
[330290767,1719234662030,-500.0,0.00020273,4]
[330290768,1719234662040,-150.0,0.00020274,2]
[330290769,1719234662049,-150.0,0.00020274,2]
[330290770,1719234662059,-150.0,0.00020274,2]
[330290771,1719234662068,-150.0,0.00020274,2]
[330290772,1719234662077,-150.0,0.00020274,2]
[330290773,1719234662087,-11751.0,0.000204,5]
[330290774,1719234662097,-170.059563,0.00020438,2]
[330290775,1719234662106,-170.059563,0.00020438,2]
[330290776,1719234662115,-15522.40050415,0.00020438,2]
[330290777,1719234662125,-1068.73915113,0.00020531,2]
[330290778,1719234662135,-707.57,0.00020547,4]
[330290779,1719234662145,-675.73,0.00020547,4]
[330290780,1719234662154,-500.0,0.00020547,4]
[330290781,1719234662163,-500.0,0.00020547,4]
[330290782,1719234662173,-500.0,0.00020547,4]
[330290783,1719234662183,-890.58,0.00020547,4]
[330290784,1719234662192,-500.0,0.00020547,4]
[330290785,1719234662201,-615.75,0.00020547,4]
[330290786,1719234662210,-500.0,0.00020547,4]
[330290787,1719234662219,-500.0,0.00020547,4]
[330290788,1719234662228,-500.0,0.00020547,4]
[330290789,1719234662237,-605.34,0.00020547,4]
[330290790,1719234662247,-500.0,0.00020547,4]
[330290791,1719234662256,-870.76,0.00020547,4]
[330290792,1719234662265,-500.0,0.00020547,4]
[330290793,1719234662275,-500.0,0.00020547,4]
[330290794,1719234662284,-500.0,0.00020547,4]
[330290795,1719234662294,-601.49,0.00020547,4]
[330290796,1719234662303,-812.19,0.00020547,4]
[330290797,1719234662313,-500.0,0.00020547,4]
[330290798,1719234662323,-925.86,0.00020547,4]
[330290799,1719234662332,-611.19,0.00020547,4]
[330290800,1719234662344,-796.24,0.00020547,4]
[330290801,1719234662353,-738.65,0.00020547,4]
[330290802,1719234662363,-765.19,0.00020547,4]
[330290803,1719234662374,-500.0,0.00020547,4]
[330290804,1719234662385,-500.0,0.00020547,4]
[330290805,1719234662395,-500.0,0.00020547,4]
[330290806,1719234662404,-500.0,0.00020547,4]
[330290807,1719234662413,-500.0,0.00020547,4]
[330290808,1719234662423,-500.0,0.00020547,4]
[330290809,1719234662432,-500.0,0.00020547,4]
[330290810,1719234662442,-500.0,0.00020547,4]
[330290811,1719234662451,-500.0,0.00020547,4]
[330290812,1719234662460,-500.0,0.00020547,4]
[330290813,1719234662469,-500.0,0.00020547,4]
[330290814,1719234662479,-157.35219269,0.00020547,4]
[330290815,1719234662488,-833.9,0.00020547,4]
[330290816,1719234662496,-500.0,0.00020547,4]
[330290817,1719234662506,-500.0,0.00020547,4]
[330290818,1719234662515,-500.0,0.00020547,4]
[330290819,1719234662524,-500.0,0.00020547,4]
[330290820,1719234662538,-500.0,0.00020547,4]
[330290821,1719234662547,-500.0,0.00020547,4]
[330290822,1719234662556,-318.67270951,0.00020547,4]
[330290823,1719234662567,-500.0,0.00020547,4]
[330290824,1719234662576,-510.71,0.00020547,4]
[330290825,1719234662585,-571.75,0.00020547,4]
[330290826,1719234662594,-896.69,0.00020547,4]
[330290827,1719234662603,-500.0,0.00020547,4]
[330290828,1719234662616,-500.0,0.00020547,4]
[330290829,1719234662626,-551.94726159,0.00020547,4]
[330290830,1719234662637,-500.0,0.00020547,4]
[330290831,1719234662647,-500.0,0.00020547,4]
[330290832,1719234662656,-500.0,0.00020547,4]
[330290833,1719234662666,-1002.68,0.00020547,4]
[330290834,1719234662675,-500.0,0.00020547,4]
[330290835,1719234662685,-500.0,0.00020547,4]
[330290836,1719234662693,-1386.44,0.00020547,4]
[330290837,1719234662703,-500.0,0.00020547,4]
[330290838,1719234662712,-500.0,0.00020547,4]
[330290839,1719234662721,-500.0,0.00020547,4]
[330290840,1719234662730,-500.0,0.00020547,4]
[330290841,1719234662739,-500.0,0.00020547,4]
[330290842,1719234662748,-500.0,0.00020547,4]
[330290843,1719234662757,-500.0,0.00020547,4]
[330290844,1719234662768,-500.0,0.00020547,4]
[330290845,1719234662777,-500.0,0.00020547,4]
[330290846,1719234662786,-500.0,0.00020547,4]
[330290847,1719234662795,-500.0,0.00020547,4]
[330290848,1719234662805,-500.0,0.00020547,4]
[330290849,1719234662814,-314.34396485,0.00020547,4]
[330290850,1719234662823,-500.0,0.00020547,4]
[330290851,1719234662832,-500.0,0.00020547,4]
[330290852,1719234662841,-500.0,0.00020547,4]
[330290853,1719234662850,-500.0,0.00020547,4]
[330290854,1719234662859,-510.58,0.00020547,4]
[330290855,1719234662869,-500.0,0.00020547,4]
[330290856,1719234662879,-500.0,0.00020547,4]
[330290857,1719234662891,-500.0,0.00020547,4]
[330290858,1719234662900,-500.0,0.00020547,4]
[330290859,1719234662910,-500.0,0.00020547,4]
[330290860,1719234662919,-500.0,0.00020547,4]
[330290861,1719234662928,-567.60114053,0.00020547,4]
[330290862,1719234662937,-389.16,0.00020547,4]
[330290863,1719234662947,-500.0,0.00020547,4]
[330290864,1719234662956,-500.0,0.00020547,4]
[330290865,1719234662965,-500.0,0.00020547,4]
[330290866,1719234662975,-500.0,0.00020547,4]
[330290867,1719234662984,-500.0,0.00020547,4]
[330290868,1719234662993,-500.0,0.00020547,4]
[330290869,1719234663003,-500.0,0.00020547,4]
[330290870,1719234663013,-610.4,0.00020547,4]
[330290871,1719234663022,-500.0,0.00020547,4]
[330290872,1719234663032,-500.0,0.00020547,4]
[330290873,1719234663042,-500.0,0.00020547,4]
[330290874,1719234663051,-500.0,0.00020547,4]
[330290875,1719234663061,-578.19,0.00020547,4]
[330290876,1719234663070,-500.0,0.00020547,4]
[330290877,1719234663080,-500.0,0.00020547,4]
[330290878,1719234663090,-330.43549542,0.00020547,4]
[330290879,1719234663100,-500.0,0.00020547,4]
[330290880,1719234663110,-500.0,0.00020547,4]
[330290881,1719234663119,-500.0,0.00020547,4]
[330290882,1719234663129,-500.0,0.00020547,4]
[330290883,1719234663143,-500.0,0.00020547,4]
[330290884,1719234663153,-500.0,0.00020547,4]
[330290885,1719234663164,-955.98,0.00020547,4]
[330290886,1719234663174,-500.0,0.00020547,4]
[330290887,1719234663184,-500.0,0.00020547,4]
[330290888,1719234663194,-500.0,0.00020547,4]
[330290889,1719234663204,-500.0,0.00020547,4]
[330290890,1719234663214,-500.0,0.00020547,4]
[330290891,1719234663224,-500.0,0.00020547,4]
[330290892,1719234663234,-500.0,0.00020547,4]
[330290893,1719234663243,-500.0,0.00020547,4]
[330290894,1719234663253,-500.0,0.00020547,4]
[330290895,1719234663263,-500.0,0.00020547,4]
[330290896,1719234663274,-500.0,0.00020547,4]
[330290897,1719234663284,-500.0,0.00020547,4]
[330290898,1719234663293,-500.0,0.00020547,4]
[330290899,1719234663303,-500.0,0.00020547,4]
[330290900,1719234663312,-500.0,0.00020547,4]
[330290901,1719234663322,-500.0,0.00020547,4]
[330290902,1719234663332,-500.0,0.00020547,4]
[330290903,1719234663341,-500.0,0.00020547,4]
[330290904,1719234663351,-500.0,0.00020547,4]
[330290905,1719234663361,-500.0,0.00020547,4]
[330290906,1719234663372,-500.0,0.00020547,4]
[330290907,1719234663385,-500.0,0.00020547,4]
[330290908,1719234663396,-500.0,0.00020547,4]
[330290909,1719234663406,-721.78,0.00020547,4]
[330290910,1719234663416,-500.0,0.00020547,4]
[330290911,1719234663426,-500.0,0.00020547,4]
[330290912,1719234663435,-500.0,0.00020547,4]
[330290913,1719234663445,-500.0,0.00020547,4]
[330290914,1719234663454,-500.0,0.00020547,4]
[330290915,1719234663464,-500.0,0.00020547,4]
[330290916,1719234663474,-500.0,0.00020547,4]
[330290917,1719234663484,-500.0,0.00020547,4]
[330290918,1719234663493,-500.0,0.00020547,4]
[330290919,1719234663503,-500.0,0.00020547,4]
[330290920,1719234663512,-500.0,0.00020547,4]
[330290921,1719234663521,-500.0,0.00020547,4]
[330290922,1719234663542,-500.0,0.00020547,4]
[330290923,1719234663552,-500.0,0.00020547,4]
[330290924,1719234663562,-500.0,0.00020547,4]
[330290925,1719234663571,-500.0,0.00020547,4]
[330290926,1719234663582,-464.31315815,0.00020547,4]
[330290927,1719234663592,-500.0,0.00020547,4]
[330290928,1719234663602,-500.0,0.00020547,4]
[330290929,1719234663614,-559.62,0.00020547,4]
[330290930,1719234663624,-961.17,0.00020547,4]
[330290931,1719234663635,-500.0,0.00020547,4]
[330290932,1719234663645,-500.0,0.00020547,4]
[330290933,1719234663655,-500.0,0.00020547,4]
[330290934,1719234663664,-500.0,0.00020547,4]
[330290935,1719234663673,-500.0,0.00020547,4]
[330290936,1719234663683,-500.0,0.00020547,4]
[330290937,1719234663692,-500.0,0.00020547,4]
[330290938,1719234663702,-500.0,0.00020547,4]
[330290939,1719234663711,-503.91,0.00020547,4]
[330290940,1719234663720,-500.0,0.00020547,4]
[330290941,1719234663730,-500.0,0.00020547,4]
[330290942,1719234663739,-641.94,0.00020547,4]
[330290943,1719234663749,-500.0,0.00020547,4]
[330290944,1719234663758,-500.0,0.00020547,4]
[330290945,1719234663769,-946.9,0.00020547,4]
[330290946,1719234663779,-2789.32,0.00020547,4]
[330290947,1719234663788,-500.0,0.00020547,4]
[330290948,1719234663798,-1021.32,0.00020547,4]
[330290949,1719234663807,-236.05042868,0.00020547,4]
[330290950,1719234663817,-500.0,0.00020547,4]
[330290951,1719234663826,-231.673429,0.00020547,2]
[330290952,1719234663835,-500.0,0.00020547,4]
[330290953,1719234663844,-609.74,0.00020547,4]
[330290954,1719234663853,-231.673429,0.00020547,2]
[330290955,1719234663863,-2129.68,0.00020547,4]
[330290956,1719234663872,-523.1,0.00020547,4]
[330290957,1719234663885,-500.0,0.00020547,4]
[330290958,1719234663895,-604.89,0.00020547,4]
[330290959,1719234663904,-500.0,0.00020547,4]
[330290960,1719234663913,-500.0,0.00020547,4]
[330290961,1719234663922,-518.22,0.00020547,4]
[330290962,1719234663931,-539.45,0.00020547,4]
[330290963,1719234663940,-5685.35,0.00020547,4]
[330290964,1719234663949,-500.0,0.00020547,4]
[330290965,1719234663958,-8388.92,0.00020547,4]
[330290966,1719234663967,-788.23,0.00020547,4]
[330290967,1719234663976,-931.76,0.00020547,4]
[330290968,1719234663986,-558.11,0.00020547,4]
[330290969,1719234663996,-589.44,0.00020547,4]
[330290970,1719234664005,-500.0,0.00020547,4]
[330290971,1719234664015,-500.0,0.00020547,4]
[330290972,1719234664024,-500.0,0.00020547,4]
[330290973,1719234664034,-500.0,0.00020547,4]
[330290974,1719234664043,-598.81,0.00020547,4]
[330290975,1719234664052,-500.0,0.00020547,4]
[330290976,1719234664062,-500.0,0.00020547,4]
[330290977,1719234664071,-515.94,0.00020547,4]
[330290978,1719234664080,-500.0,0.00020547,4]
[330290979,1719234664090,-1333.15,0.00020547,4]
[330290980,1719234664100,-1076.06,0.00020547,4]
[330290981,1719234664110,-552.26,0.00020547,4]
[330290982,1719234664119,-500.0,0.00020547,4]
[330290983,1719234664129,-507.36,0.00020547,4]
[330290984,1719234664145,-500.0,0.00020547,4]
[330290985,1719234664156,-1022.66,0.00020547,4]
[330290986,1719234664165,-500.0,0.00020547,4]
[330290987,1719234664175,-500.0,0.00020547,4]
[330290988,1719234664184,-500.0,0.00020547,4]
[330290989,1719234664194,-4095.82,0.00020547,4]
[330290990,1719234664203,-500.0,0.00020547,4]
[330290991,1719234664213,-670.27,0.00020547,4]
[330290992,1719234664223,-500.0,0.00020547,4]
[330290993,1719234664232,-587.18,0.00020547,4]
[330290994,1719234664242,-500.0,0.00020547,4]
[330290995,1719234664251,-299.43457064,0.00020547,4]
[330290996,1719234664260,-500.0,0.00020547,4]
[330290997,1719234664269,-500.0,0.00020547,4]
[330290998,1719234664279,-500.0,0.00020547,4]
[330290999,1719234664288,-599.34,0.00020547,4]
[330291000,1719234664298,-1195.25,0.00020547,4]
[330291001,1719234664307,-833.51,0.00020547,4]
[330291002,1719234664316,-500.0,0.00020547,4]
[330291003,1719234664325,-675.38,0.00020547,4]
[330291004,1719234664335,-1029.66,0.00020547,4]
[330291005,1719234664344,-500.0,0.00020547,4]
[330291006,1719234664353,-500.0,0.00020547,4]
[330291007,1719234664363,-599.32,0.00020547,4]
[330291008,1719234664372,-500.0,0.00020547,4]
[330291009,1719234664383,-751.48,0.00020547,4]
[330291010,1719234664393,-504.75,0.00020547,4]
[330291011,1719234664402,-622.88,0.00020547,4]
[330291012,1719234664411,-812.04,0.00020547,4]
[330291013,1719234664421,-500.0,0.00020547,4]
[330291014,1719234664430,-500.0,0.00020547,4]
[330291015,1719234664439,-1838.7,0.00020547,4]
[330291016,1719234664449,-500.0,0.00020547,4]
[330291017,1719234664459,-732.02,0.00020547,4]
[330291018,1719234664468,-500.0,0.00020547,4]
[330291019,1719234664477,-548.92,0.00020547,4]
[330291020,1719234664487,-500.0,0.00020547,4]
[330291021,1719234664496,-500.0,0.00020547,4]